Cogmind - Beta 10.1 @@@ ROGUE MODE // 2020.10.25 @ 01:02:45 Player: Cog Result: Destroyed by DAS Turret with DAS Cannon Performance ------------- Evolutions (1) 500 Regions Visited (4) 800 Robots Destroyed (18) 90 Value Destroyed (217) 217 Prototype IDs (26) 520 Alien Tech Used (0) 0 Bonus (186) 186 TOTAL SCORE: 2313 Bonus ------- Aligned with FarCom 300 Friendly Fire -114 Cogmind --------- Core Integrity 0/400 Matter 295/300 Energy 100/100 System Corruption 0% Temperature Cool (0) Movement Core (350) Ox6 Location -9/Exiles Parts ------- > --- POWER (1) -------- (None) > --- PROPULSION (2) --- (None) > --- UTILITY (4) ------ Large Storage Unit Visual Processing Unit > --- WEAPON (2) ------- Longsword +1 > --- INVENTORY (10) --- Reinforced Deuterium Engine Fission Core Light Fission Core Large Battery (300) Small Matter Pod (0) Improved Signal Interpreter Improved Signal Interpreter Tractor Beam Medium Laser Peak State ------------ > --- POWER ------------ Ion Engine > --- PROPULSION ------- Aluminum Leg Aluminum Leg > --- UTILITY ---------- Large Storage Unit Visual Processing Unit Bomb Drone Bay > --- WEAPON ----------- Medium Laser Longsword +1 > --- INVENTORY -------- Reinforced Deuterium Engine Fission Core Light Fission Core Large Battery Small Matter Pod Improved Signal Interpreter Improved Signal Interpreter Core Shielding Tractor Beam Medium Laser [Rating: 31] Favorites ----------- Power Light Ion Engine Engine Light Ion Engine Propulsion Aluminum Leg Leg Aluminum Leg Wheel Wheel Utility Medium Storage Unit Device Bomb Drone Bay Storage Medium Storage Unit Processor Visual Processing Unit Protection Core Shielding Weapon Medium Laser Energy Gun Medium Laser Ballistic Gun Light Assault Rifle Launcher Rocket Launcher Special Weapon Mining Laser Impact Weapon Mace Slashing Weapon Longsword +1 Build | -11 -10 -9 -9 -9 ------- Run | Scr Mat Mat Min Exi Slots Evolved 2 | . . 2 . . Power . | . . . . . Propulsion . | . . . . . Utility 2 | . . 2 . . Weapon . | . . . . . Parts Attached 26 | 2 6 10 1 7 Power 1 | . . . . 1 Engine 1 | . . . . 1 Core . | . . . . . Reactor . | . . . . . Propulsion 5 | . 2 3 . . Treads . | . . . . . Leg 2 | . . 2 . . Wheel 3 | . 2 1 . . Hover . | . . . . . Flight . | . . . . . Utility 10 | . 3 3 1 3 Device 3 | . 1 1 1 . Storage 3 | . 1 . . 2 Processor 2 | . 1 1 . . Hackware . | . . . . . Protection 2 | . . 1 . 1 Artifact . | . . . . . Weapon 10 | 2 1 4 . 3 Energy Gun 5 | 1 . 2 . 2 Energy Cannon . | . . . . . Ballistic Gun 1 | . 1 . . . Ballistic Cannon . | . . . . . Launcher 1 | . . 1 . . Special Weapon 1 | 1 . . . . Impact Weapon 1 | . . 1 . . Slashing Weapon 1 | . . . . 1 Piercing Weapon . | . . . . . Special Melee Weapon . | . . . . . Unidentified Prototypes 1 | . . . 1 . Parts Lost 12 | . . 6 . 6 Power 2 | . . 1 . 1 Propulsion 5 | . . 3 . 2 Utility 2 | . . . . 2 Weapon 3 | . . 2 . 1 Highest Loss Streak 6 | . . 6 . 6 Average Slot Usage (%) 90 | . 99 97 61 87 Engine 10 | . 14 10 . 11 Leg 14 | . 13 . 22 21 Wheel 8 | . 14 20 . . Device 6 | . 3 2 4 10 Storage 11 | . 14 11 11 11 Processor 13 | . 9 19 17 11 Protection 3 | . . 11 6 . Energy Gun 15 | . 14 11 . 20 Ballistic Gun 2 | . 10 . . . Impact Weapon 1 | . . 5 . . Naked Turns . | . . . . . Heaviest Build 34 | 10 15 18 16 34 Greatest Support 20 | 20 20 20 20 20 Greatest Overweight (x) 6 | . . 1 . 6 Average Overweight (x) . | . . . . 1 Largest Inventory Capacity 10 | 6 8 8 8 10 Average Capacity 8 | 6 7 8 8 8 Most Carried 10 | 6 8 8 7 10 Average Carried 7 | 5 7 7 6 8 Final Capacity 10 | 6 8 8 8 10 Final Carried 9 | 5 8 6 7 9 Class Distribution -------------------- 100% | Mutant Dominant Class ---------------- Mutant | -10/Materials Mutant | -9/Materials Mutant | -9/Mines Mutant | -9/Exiles Resources | -11 -10 -9 -9 -9 ----------- Run | Scr Mat Mat Min Exi Matter Collected 451 | 220 78 45 . 108 Remotely 49 | . 33 16 . . Salvage Created 436 | 80 102 196 . 58 Parts 39 | 6 6 23 . 4 Haulers Intercepted 1 | . 1 . . . Recyclers Shooed 2 | . 2 . . . Parts Field Recycled . | . . . . . Retrieved Matter . | . . . . . Parts Self-Destructed . | . . . . . Prevented . | . . . . . Kills | -11 -10 -9 -9 -9 ------- Run | Scr Mat Mat Min Exi Combat Hostiles Destroyed 7 | . 1 6 . . Guns 1 | . 1 . . . AOE 6 | . . 6 . . Classes Destroyed 8 | 3 2 3 . . Worker 1 | 1 . . . . Tunneler 3 | 2 . 1 . . Hauler 1 | . 1 . . . Recycler 2 | 1 . 1 . . Operator 1 | . . 1 . . Watcher 3 | . . 3 . . Swarmer 6 | . . 6 . . Grunt 1 | . 1 . . . Best Kill Streak 4 | 2 1 4 . . Combat Bots Only 4 | . 1 4 . . Max Kills in Single Turn 4 | 1 1 4 . . Gunslinging . | . . . . . Exploded 4 | . . 4 . . Melee . | . . . . . Uniques/NPCs Destroyed . | . . . . . Combat | -11 -10 -9 -9 -9 -------- Run | Scr Mat Mat Min Exi Damage Taken 1758 | . 168 524 . 1066 Core 425 | . 11 111 . 303 Absorbed by Shields . | . . . . . Core Remaining (%) 97 | 100 95 . . . Volleys Fired 40 | 12 20 8 . . Largest 2 | 2 2 2 . . Hottest 100 | 100 100 100 . . Shots Fired 67 | 17 38 12 . . Gun 54 | 10 36 8 . . Cannon . | . . . . . Launcher 4 | . . 4 . . Special 9 | 7 2 . . . Kinetic 18 | . 18 . . . Thermal 45 | 17 20 8 . . Explosive 4 | . . 4 . . Electromagnetic . | . . . . . Robot Hit Streak 4 | 4 4 3 . . Robot Miss Streak 4 | 2 4 4 . . Penetration Max . | . . . . . Secondary Targets . | . . . . . Shots Hit Robots 38 | 11 21 5 . 1 Core Hits 25 | 5 6 13 . 1 Critical Hits . | . . . . . Critical Kills . | . . . . . Critical Parts Destroyed . | . . . . . Melee Attacks 10 | . . 9 . 1 Impact 9 | . . 9 . . Slashing 1 | . . . . 1 Piercing . | . . . . . Sneak Attacks . | . . . . . Combat Hostiles . | . . . . . Follow-up Attacks . | . . . . . Damage Inflicted 1078 | 190 241 533 . 114 Guns 361 | 70 241 50 . . Cannons . | . . . . . Explosions 446 | . . 446 . . Melee 145 | . . 31 . 114 Ramming 6 | . . 6 . . Kinetic 89 | . 89 . . . Thermal 392 | 190 152 50 . . Explosive 446 | . . 446 . . Electromagnetic . | . . . . . Impact 31 | . . 31 . . Slashing 114 | . . . . 114 Piercing . | . . . . . Highest Corruption . | . . . . . Average Corruption . | . . . . . Corruption Purged . | . . . . . Overload Shots . | . . . . . Overflow Damage 40 | 8 . 32 . . Projectiles 8 | 8 . . . . Explosions 31 | . . 31 . . Melee 1 | . . 1 . . Knockbacks 1 | . . 1 . . Impact 1 | . . 1 . . Kinetic . | . . . . . Secondary . | . . . . . Self-Inflicted Damage 50 | . . 50 . . Shots 1 | . . 1 . . Rammed 1 | . . 1 . . Targets Rammed 2 | . . 2 . . Kicked 1 | . . 1 . . Crushed . | . . . . . Highest Temperature 221 | 110 221 60 . . Average Temperature 50 | 31 69 24 . . Received Heat Transfer 210 | . 96 114 . . Effects 1 | . 1 . . . Interference 1 | . 1 . . . Siege Activations . | . . . . . Robots Corrupted . | . . . . . Combat Hostiles . | . . . . . Parts Fried 3 | . . 3 . . Impact Corruptions 1 | . . 1 . . Robots Melted . | . . . . . Combat Hostiles . | . . . . . Parts Melted 4 | 4 . . . . Heat Transferred 1040 | 448 444 148 . . Parts Sabotaged . | . . . . . Parts Stolen . | . . . . . Parts Stripped . | . . . . . Power Chain Reactions . | . . . . . Missiles Intercepted . | . . . . . Alert | -11 -10 -9 -9 -9 ------- Run | Scr Mat Mat Min Exi Peak Influence 322 | 20 98 322 113 . Initial 113 | . 13 40 113 . Average 97 | 9 51 163 113 . Maximum Alert Level 1 | . . 1 . . Low Security (%) 85 | 100 100 65 100 . Level 1 14 | . . 34 . . Level 2 . | . . . . . Level 3 . | . . . . . Level 4 . | . . . . . Level 5 . | . . . . . High Security . | . . . . . Max Security . | . . . . . Squads Dispatched 3 | . 1 2 . . Investigation 1 | . 1 . . . Extermination . | . . . . . Reinforcement 2 | . . 2 . . Assault . | . . . . . Garrison . | . . . . . Intercept . | . . . . . Construction Impeded . | . . . . . Haulers Reinforced . | . . . . . Stealth | -11 -10 -9 -9 -9 --------- Run | Scr Mat Mat Min Exi Distress Signals 1 | . . 1 . . Communications Jammed . | . . . . . Distress Signals . | . . . . . Times Spotted 55 | . 5 25 . 25 Peak Tracking Total 12 | . 2 10 . 12 Tactical Retreats 7 | . 2 3 . 2 Traps | -11 -10 -9 -9 -9 ------- Run | Scr Mat Mat Min Exi Traps Triggered . | . . . . . Indirectly . | . . . . . Trap Hack Attempts . | . . . . . Triggered . | . . . . . Disarmed . | . . . . . Reprogrammed 6 | . 6 . . . Reused . | . . . . . Traps Extracted . | . . . . . Installed . | . . . . . Triggered . | . . . . . Machines | -11 -10 -9 -9 -9 ---------- Run | Scr Mat Mat Min Exi Machines Disabled 1 | . . 1 . . Max in Single Turn 1 | . . 1 . . Machines Sabotaged . | . . . . . Garrisons Compromised . | . . . . . Overloaded Fab Kills . | . . . . . Fab Network Shutdowns . | . . . . . Hacking | -11 -10 -9 -9 -9 --------- Run | Scr Mat Mat Min Exi Machines Accessed 11 | . 5 3 1 2 Terminals 8 | . 5 3 . . Fabricators . | . . . . . Repair Stations . | . . . . . Recycling Units . | . . . . . Scanalyzers . | . . . . . Garrison Access . | . . . . . Total Hacks 25 | . 14 8 1 2 Successful 15 | . 7 5 1 2 Failed 10 | . 7 3 . . Catastrophic 2 | . 2 . . . Database Lockouts . | . . . . . Manual 13 | . 7 5 . 1 Terminals 22 | . 14 8 . . Fabricators . | . . . . . Repair Stations . | . . . . . Recycling Units . | . . . . . Scanalyzers . | . . . . . Garrison Access . | . . . . . Terminal Hacks 12 | . 6 3 1 2 Record 1 | . . . . 1 Prototype ID Bank 1 | . 1 . . . Open Door 1 | . . . 1 . Alert Level 1 | . 1 . . . Locate Traps 1 | . 1 . . . Reprogram Traps 1 | . 1 . . . Dispatch Records 1 | . . 1 . . Security Status 1 | . . 1 . . Surveillance Status 1 | . 1 . . . Recall Investigation 1 | . 1 . . . Recall Reinforcements 1 | . . 1 . . EX-Prototype ID Bank 1 | . . . . 1 Fabricator Hacks . | . . . . . Repair Station Hacks . | . . . . . Recycling Unit Hacks . | . . . . . Scanalyzer . | . . . . . Garrison Access Hacks . | . . . . . Unauthorized Hacks 3 | . 1 2 . . Terminals 3 | . 1 2 . . Botnet 3 | . 1 2 . . Fabricators . | . . . . . Repair Stations . | . . . . . Recycling Units . | . . . . . Scanalyzers . | . . . . . Garrison Access . | . . . . . Data Cores Recovered . | . . . . . Used . | . . . . . Hacking Detections 6 | . 3 3 . . Full Trace Events 1 | . 1 . . . Feedback Events . | . . . . . Feedback Blocked . | . . . . . Robot Schematics Acquired . | . . . . . Robots Built . | . . . . . Matter . | . . . . . Time . | . . . . . Total Robot Build Rating . | . . . . . Part Schematics Acquired . | . . . . . Parts Built . | . . . . . Matter . | . . . . . Time . | . . . . . Total Part Build Rating . | . . . . . Parts Repaired . | . . . . . Time . | . . . . . Parts Recycled . | . . . . . Recycled Matter . | . . . . . Retrieved Matter . | . . . . . Retrieved Components . | . . . . . Parts Scanalyzed . | . . . . . Part Schematics Acquired . | . . . . . Parts Damaged . | . . . . . Bothacking | -11 -10 -9 -9 -9 ------------ Run | Scr Mat Mat Min Exi Used RIF Installer . | . . . . . Robots Hacked . | . . . . . Non-combat . | . . . . . Combat . | . . . . . Robot Hacks Applied . | . . . . . Relay Couplers Released . | . . . . . Robots Rewired . | . . . . . Allies Hacked . | . . . . . Hacks Repelled . | . . . . . Allies | -11 -10 -9 -9 -9 -------- Run | Scr Mat Mat Min Exi Total Allies . | . . . . . Largest Group . | . . . . . Highest-Rated Group . | . . . . . Highest-Rated Ally . | . . . . . Total Orders . | . . . . . Ally Attacks 10 | . . . . 10 Total Damage . | . . . . . Kills . | . . . . . Allies Corrupted . | . . . . . Allies Melted . | . . . . . Intel | -11 -10 -9 -9 -9 ------- Run | Scr Mat Mat Min Exi Robot Analysis Total . | . . . . . Derelict Logs Recovered . | . . . . . Drone Launches 10 | . . . . 10 Drone Recoveries . | . . . . . Exploration | -11 -10 -9 -9 -9 ------------- Run | Scr Mat Mat Min Exi Turns Passed 1517 | 114 303 343 82 675 Spaces Moved 1115 | 55 224 333 67 436 Core 1 | . . . . 1 Treads . | . . . . . Legs 639 | 55 82 . 67 435 Wheels 475 | . 142 333 . . Hover . | . . . . . Flight . | . . . . . Fastest Speed 80 | 120 80 80 120 150 Average Speed 115 | 120 94 81 120 150 Slowest Speed 350 | 120 120 90 120 350 Overloaded Moves . | . . . . . Propulsion Burnouts . | . . . . . Robots Hopped . | . . . . . Cave-ins Triggered . | . . . . . Exploration Rate (%) 38 | 4 49 47 22 72 Regions Visited 4 Branch Regions 2 Pre-discovered Areas 2 | . . . 1 1 Known Exits Taken . | . . . . . Unknown Exits Taken 4 | 1 1 1 1 . Scrap Searched . | . . . . . Spaces Dug 8 | 1 1 6 . . Terrain Destroyed 35 | 1 2 32 . . Melee 6 | . . 6 . . Projectile 3 | 1 2 . . . AOE 26 | . . 26 . . Terrain Rammed . | . . . . . Walls Destroyed . | . . . . . Machines Disabled . | . . . . . Actions | -11 -10 -9 -9 -9 --------- Run | Scr Mat Mat Min Exi Total 1250 | 72 275 380 69 454 Wait 31 | . 20 9 . 2 Move 1112 | 54 223 333 66 436 Hop . | . . . . . Pick Up 14 | 1 3 4 . 6 Fast Attach 8 | 1 2 4 1 . Attach 8 | . . 4 . 4 Detach 3 | . 1 1 1 . Swap 10 | 1 4 2 . 3 Drop 13 | 3 2 5 1 2 Fire 40 | 12 20 8 . . Melee 10 | . . 9 . 1 Ram . | . . . . . Kick 1 | . . 1 . . Crush . | . . . . . Escape Stasis . | . . . . . Rewire . | . . . . . Trap . | . . . . . Miscellaneous . | . . . . . Route ------- -11/Scrapyard -10/Materials (discovered 2 exits: *Mat / [*Min]) -9/Materials (discovered 2 exits: *Min x2) -9/Mines (discovered 2 exits: [*Mat] / *Exi) -9/Exiles (discovered 2 exits: [*Min x2]) History --------- Turn | Location | Event 1 | -11/Scrapyard | Discovered new exit (range 3) 115 | -11/Scrapyard | Entered Materials 193 | -10/Materials | Discovered new exit (range 8) 300 | -10/Materials | Build established: Mutant 389 | -10/Materials | Discovered new exit (range 16) 418 | -10/Materials | Entered another Materials area 418 | -9/Materials | Evolved 2 slots: Utility x2 691 | -9/Materials | Discovered new exit (range 6) 752 | -9/Materials | Discovered new exit (range 8) 761 | -9/Materials | Entered Mines 762 | -9/Mines | Learned location of Storage (-8) 782 | -9/Mines | Discovered new exit (range 14) 789 | -9/Mines | Lost 6 parts (1p3n2w) 809 | -9/Mines | Found the Drone Emporium 814 | -9/Mines | Found Prototype Device 814 | -9/Mines | Identified Bomb Drone Bay 837 | -9/Mines | Deemed a non-threat by the Exiles lab entrance 838 | -9/Mines | Discovered new exit (range 5) 843 | -9/Mines | Entered Exiles 871 | -9/Exiles | Discovered new exit (range 17) 887 | -9/Exiles | Met 8R-AWN 911 | -9/Exiles | Met EX-HEX 954 | -9/Exiles | Met EX-BIN 972 | -9/Exiles | Aligned with FarCom system 974 | -9/Exiles | Given EX-Vault access code 1008 | -9/Exiles | Opened EX-Vault 1020 | -9/Exiles | Found Longsword +1 1054 | -9/Exiles | Warned to stay clear of 0b10 Research branches 1090 | -9/Exiles | Met EX-DEC 1116 | -9/Exiles | Learned location of Zion (-7) 1389 | -9/Exiles | Discovered new exit (range 15) 1484 | -9/Exiles | Attacked by the Exiles 1501 | -9/Exiles | Core integrity fell below 50% 1517 | -9/Exiles | Core integrity fell below 20% 1518 | -9/Exiles | Destroyed by DAS Turret with DAS Cannon Last Messages --------------- 01497_ Bomb Drone detonates. 01497_ Bomb Drone destroyed. 01497_ OA-DU6(z) destroyed. 01498_ Bomb Drone released from Bomb Drone Bay. 01498_ The unstable cave ceiling collapses. 01498_ Bomb Drone detonates. 01498_ Bomb Drone destroyed. 01498_ Bomb Drone sneak attacks. 01498_ Bomb Drone detonates. 01498_ Bomb Drone destroyed. 01498_ Bomb Drone Bay destroyed. 01498_ Knocked back. 01499_ The unstable cave ceiling collapses. 01502_ Knocked back. 01504_ Aluminum Leg destroyed. 01506_ Knocked back. 01514_ Ion Engine destroyed. 01514_ Aluminum Leg destroyed. 01514_ Knocked back. 01518_ Core Shielding destroyed. Map ----- +----------------------------------------------------+ | ????????????????????????????##"###??# #?#""""" | | ????????????????????????????????????# #?#""""" | | ????????????????????????????????????# #?#""""" | | ???????????????????????????????????## ###"" "" | | ???#######?????????????????????????#" "" | | ???#!!! "#?????????????????????????#" " | | ???# "#?????????????????????????#" " | | ???# "#?????????????????????????#" " | | ??## ""#????????????##???????????#" " | | ###" ""#???????????? ""?????????#" " | | ##" ""#????????????" """????????## " | | #"" #??????????????" ?????????# " | | #?????????????"" ?????????#" "X" " | | ##????????????"" "#????????#" """ | | "#???????????? ""?????????#" """"""" | | ###???????????" "?????????##" ######## | | ##??????????# #????????##"" #??????? | | "###"" ######???### ###?######"" #??????? | | "#?##" """#####X# #"###""""""" ##?????? | | ##??#" """""" " "" ##???## | | #???#"# "" """ " #####" | | ????#### " " " | | ???????### | | ?????????### | | ???????????## | | ????????????## @ | | ?????????????##" | | ??????????????#""" """""" | | ?????????????##" * ######""" | | ?????????????#"" #????#####""" | | ????????????## " ##????????##""" | | ????????????# # #????###### """ | | ????????????# #??? # | | ???????????## c #### | | ???????????# # ! | | ???????????## t *!= %! | | ???????????# a !!! | | ????????????# | | ????????????# | | ????????????# " | | ?????????????# "" | | ?????????????# ""#### # " | | ?????????????## """"##??# ####### "" | | ?????????????# """#??## ####????## | | ????????????### ""##??#! "!#?????? | | ????????????# """##???#" #?????? | | ????????????## ##????#" "#?????? | | ?????????????# # ##?????#!!""!"#?????? | | ?????????????## #??????########?????? | | ??????????????# ##???????????????????? | +----------------------------------------------------+ Best States ------------- Heat Dissipation 28 Energy Generation 10 Energy Capacity 250 Matter Stores 300 Matter Capacity 300 Sight Range 18 Terrain Scan Density 10 Core Shielding 20 Evasion (%) 44 Item Schematics ----------------- None Robot Schematics ------------------ None Fabricated ------------ Nothing Alien Tech Used ----------------- None Achievements -------------- None Challenges ------------ None Game ------ Seed EnergyAluminumKatana Manual? 0 Play Time 00:23:15 Cumulative 82.8 hours Start 2020.10.25 @ 00:37:19 End 2020.10.25 @ 01:02:45 Sessions 1 Manual Loads 0 Difficulty Rogue Special Mode None Game No. 96 Rogue 96 Adventurer 0 Explorer 0 Win Type - Total 0 Types 0/0/0/0/0/0/0/0/0 Lore% 52 Gallery% 58 Achievement% 45 Wizard Run 0 Options --------- ASCII 0 Keyboard 0 Movement Numpad Keybinds 0 Fullscreen 1 Font 24/Smallcaps Map View 76x50 Tactical HUD 1 Map Filters NONE Filters NONE Steam 1 RUN: d86b3935-9747-4d6f-a023-fa29b3022cdb